{"text_format":"1","workbook":"xlsx","n_sheets":5,"sheets":["Formulario Apertura","AUX","Anexo Nóminas","Anexo Rep. Legal","Anexo de Conformidad"],"not_rendered":{"charts":0,"images":5,"macros":1,"external_links":0,"defined_names":5,"comments":0,"pivot_tables":0},"unopened":[],"bounds":{"document_bytes":16777216,"sheet_cells":100000,"rows_first":2000,"rows_last":500,"rows_between":2000,"halvings":0,"cell_chars":16384,"cell_head_chars":4096},"cells_cut":0,"cells_raw":0,"read":"whole","date_system":"1900"}

{"sheet":"Formulario Apertura","index":0,"n_rows":350,"n_cols":72,"rows_kept":350,"cut":false,"hidden":false,"merged":[[1,0,1,20],[258,0,258,20],[251,0,251,20],[243,0,243,20],[328,0,328,20],[203,0,203,19],[72,0,72,3],[72,10,72,11],[72,4,72,8],[72,12,72,13],[98,0,98,3],[98,4,98,8],[98,10,98,11],[98,12,98,13],[124,0,124,3],[124,4,124,8],[124,10,124,11],[124,12,124,13],[150,0,150,3],[150,4,150,8],[73,0,73,19],[137,0,137,2],[132,0,132,19],[133,0,133,2],[71,0,71,19],[97,0,97,19],[99,0,99,19],[123,0,123,19],[125,0,125,19],[149,0,149,19],[67,0,67,19],[68,0,68,10],[68,11,68,14],[89,0,89,2],[91,0,91,2],[70,0,70,19],[90,0,90,19],[75,0,75,2],[78,0,78,19],[84,0,84,19],[86,0,86,19],[88,0,88,19],[137,14,137,19],[139,0,139,2],[139,3,139,11],[139,12,139,13],[139,14,139,19],[85,0,85,2],[51,0,51,5],[51,6,51,7],[54,0,54,5],[54,6,54,7],[50,0,50,5],[50,6,50,7],[52,0,52,5],[52,6,52,7],[53,0,53,5],[53,6,53,7],[45,15,45,16],[37,0,37,19],[39,11,39,14],[48,11,48,14],[48,15,48,16],[49,0,49,5],[49,6,49,7],[49,11,49,14],[49,15,49,16],[46,15,46,16],[47,15,47,16],[48,0,48,5],[48,6,48,7],[46,11,46,14],[47,11,47,14],[44,6,44,7],[46,6,46,7],[47,6,47,7],[46,0,46,5],[45,0,45,5],[45,6,45,7],[47,0,47,5],[45,11,45,14],[5,14,5,19],[5,3,5,11],[5,12,5,13],[7,9,7,11],[7,7,7,8],[7,12,7,13],[7,14,7,19],[7,3,7,6],[9,0,9,19],[265,0,265,19],[327,0,327,19],[267,0,267,19],[269,0,269,19],[271,0,271,19],[276,0,276,19],[278,0,278,19],[272,1,272,19],[273,1,273,19],[274,1,274,19],[279,1,279,19],[287,1,302,5],[284,0,284,19],[283,1,283,19],[280,0,280,19],[307,1,307,19],[324,7,324,11],[304,7,304,11],[285,4,285,6],[285,12,285,14],[303,7,303,11],[304,13,304,18],[323,13,323,18],[266,2,266,19],[27,11,27,14],[27,15,27,16],[28,0,28,5],[28,6,28,7],[28,11,28,14],[28,15,28,16],[29,0,29,5],[29,6,29,7],[29,11,29,14],[29,15,29,16],[27,0,27,5],[27,6,27,7],[30,11,30,14],[30,15,30,16],[31,0,31,5],[31,6,31,7],[31,11,31,14],[31,15,31,16],[32,0,32,5],[30,0,30,5],[30,6,30,7],[33,6,33,7],[34,6,34,7],[32,6,32,7],[32,11,32,14],[32,15,32,16],[42,10,43,10],[42,11,43,14],[42,15,43,16],[44,15,44,16],[42,6,43,7],[42,8,43,8],[36,0,36,19],[34,11,34,14],[44,11,44,14],[33,0,33,5],[34,0,34,5],[39,0,39,10],[42,17,42,19],[261,0,261,19],[263,0,263,19],[230,0,230,19],[235,0,235,2],[241,0,241,19],[256,3,256,10],[50,11,50,14],[50,15,50,16],[51,11,51,14],[51,15,51,16],[52,11,52,14],[52,15,52,16],[53,11,53,14],[53,15,53,16],[54,11,54,14],[54,15,54,16],[55,11,55,14],[55,15,55,16],[65,0,65,19],[63,6,63,7],[63,0,63,5],[62,0,62,5],[55,0,55,5],[61,0,61,5],[2,0,2,19],[4,0,4,19],[6,0,6,19],[8,0,8,19],[12,0,12,19],[35,0,35,19],[41,0,41,19],[66,0,66,19],[74,0,74,19],[3,12,3,13],[3,14,3,19],[3,3,3,11],[19,11,19,14],[19,15,19,16],[20,0,20,5],[20,6,20,7],[20,11,20,14],[20,15,20,16],[10,0,10,6],[10,11,10,14],[15,6,15,7],[17,6,17,7],[16,0,16,5],[16,6,16,7],[348,11,348,18],[349,11,349,18],[324,13,324,18],[324,1,324,5],[348,2,348,8],[336,2,347,8],[329,0,329,19],[336,11,347,18],[334,0,334,19],[330,1,330,6],[332,1,332,2],[330,14,330,18],[332,14,332,18],[330,9,330,12],[26,11,26,14],[26,15,26,16],[21,0,21,5],[21,6,21,7],[21,11,21,14],[21,15,21,16],[22,0,22,5],[22,6,22,7],[24,6,24,7],[24,11,24,14],[24,15,24,16],[25,0,25,5],[25,6,25,7],[25,11,25,14],[25,15,25,16],[13,17,13,19],[13,9,14,9],[13,10,14,10],[13,11,14,14],[13,15,14,16],[13,6,14,7],[13,8,14,8],[18,6,18,7],[19,0,19,5],[19,6,19,7],[18,11,18,14],[18,0,18,5],[16,11,16,14],[16,15,16,16],[17,0,17,5],[3,0,3,2],[5,0,5,2],[7,0,7,2],[13,0,14,5],[15,0,15,5],[44,0,44,5],[42,0,43,5],[15,15,15,16],[17,15,17,16],[18,15,18,16],[33,15,33,16],[34,15,34,16],[15,11,15,14],[17,11,17,14],[33,11,33,14],[22,11,22,14],[22,15,22,16],[23,0,23,5],[23,6,23,7],[23,11,23,14],[23,15,23,16],[24,0,24,5],[26,0,26,5],[26,6,26,7],[57,0,57,5],[57,6,57,7],[57,11,57,14],[57,15,57,16],[58,0,58,5],[58,6,58,7],[58,11,58,14],[58,15,58,16],[59,0,59,5],[59,6,59,7],[59,11,59,14],[59,15,59,16],[63,15,63,16],[61,11,61,14],[62,11,62,14],[63,11,63,14],[56,6,56,7],[56,11,56,14],[56,15,56,16],[61,6,61,7],[60,15,60,16],[260,2,260,8],[260,10,260,14],[260,16,260,19],[248,3,248,10],[245,3,245,10],[228,0,228,19],[96,0,96,19],[229,0,229,19],[89,3,89,11],[89,12,89,13],[89,14,89,19],[133,8,133,11],[133,12,133,16],[134,0,134,19],[117,3,117,11],[117,12,117,13],[117,14,117,19],[248,0,248,2],[130,0,130,19],[202,0,202,3],[202,4,202,8],[202,10,202,11],[202,12,202,13],[201,0,201,19],[231,0,231,19],[250,0,250,19],[252,0,252,19],[42,9,43,9],[255,8,255,10],[255,14,255,15],[255,11,255,13],[255,16,255,19],[157,12,157,13],[118,0,118,19],[126,0,126,19],[157,0,157,2],[157,3,157,5],[157,6,157,7],[157,8,157,11],[127,0,127,2],[127,3,127,11],[127,12,127,13],[141,14,141,19],[133,3,133,5],[133,6,133,7],[64,0,64,19],[61,15,61,16],[56,0,56,5],[55,6,55,7],[127,14,127,17],[128,0,128,19],[115,14,115,19],[116,0,116,19],[129,0,129,2],[129,6,129,7],[129,8,129,11],[129,12,129,13],[129,14,129,19],[117,0,117,2],[115,0,115,2],[115,3,115,11],[115,12,115,13],[77,12,77,13],[87,12,87,13],[87,0,87,2],[87,14,87,19],[87,3,87,11],[62,15,62,16],[60,0,60,5],[60,6,60,7],[60,11,60,14],[62,6,62,7],[83,14,83,19],[83,6,83,7],[83,8,83,11],[83,0,83,2],[85,12,85,13],[82,0,82,19],[80,0,80,19],[79,3,79,5],[79,12,79,13],[79,6,79,7],[81,12,81,16],[79,14,79,19],[81,6,81,7],[81,3,81,5],[81,8,81,11],[83,3,83,5],[83,12,83,13],[79,8,79,11],[85,14,85,19],[85,3,85,11],[79,0,79,2],[81,0,81,2],[256,11,256,19],[256,0,256,2],[238,12,238,13],[254,0,254,2],[270,0,270,19],[281,0,281,19],[303,1,303,5],[277,0,277,19],[155,8,155,11],[155,12,155,13],[155,14,155,19],[255,0,255,2],[253,11,253,19],[238,16,238,19],[282,0,282,19],[254,11,254,19],[264,8,264,19],[268,1,268,19],[255,3,255,5],[255,6,255,7],[249,11,249,19],[249,0,249,2],[249,3,249,10],[234,0,234,2],[253,1,253,2],[253,3,253,10],[232,15,232,19],[232,9,232,11],[233,0,233,2],[233,6,233,8],[233,9,233,11],[233,3,233,5],[232,3,232,5],[232,6,232,8],[232,12,232,14],[236,0,236,19],[235,3,235,5],[235,6,235,8],[235,9,235,11],[233,12,235,14],[242,0,242,19],[234,3,234,5],[234,6,234,8],[234,9,234,11],[239,3,239,19],[247,3,247,10],[77,0,77,2],[77,6,77,7],[75,14,75,17],[75,3,75,11],[75,12,75,13],[77,8,77,11],[77,14,77,19],[76,0,76,19],[233,15,235,19],[142,0,142,19],[143,0,143,2],[143,3,143,11],[143,12,143,13],[143,14,143,19],[152,0,152,19],[157,14,157,19],[156,0,156,19],[153,12,153,13],[160,0,160,19],[161,0,161,2],[155,0,155,2],[155,6,155,7],[154,0,154,19],[159,0,159,2],[159,3,159,5],[159,6,159,7],[159,8,159,11],[159,12,159,16],[158,0,158,19],[161,3,161,5],[91,3,91,11],[91,12,91,13],[91,14,91,19],[100,0,100,19],[101,0,101,2],[101,3,101,11],[101,12,101,13],[101,14,101,17],[92,0,92,19],[102,0,102,19],[103,0,103,2],[103,6,103,7],[103,8,103,11],[103,12,103,13],[103,14,103,19],[104,0,104,19],[105,0,105,2],[105,3,105,5],[105,6,105,7],[105,8,105,11],[105,12,105,13],[105,14,105,19],[106,0,106,19],[107,0,107,2],[107,3,107,5],[107,6,107,7],[107,8,107,11],[107,12,107,16],[108,0,108,19],[109,0,109,2],[109,3,109,5],[109,6,109,7],[109,8,109,11],[109,12,109,13],[109,14,109,19],[114,0,114,19],[111,0,111,2],[111,3,111,11],[111,12,111,13],[111,14,111,19],[112,0,112,19],[113,0,113,2],[113,3,113,11],[113,12,113,13],[113,14,113,19],[110,0,110,19],[135,0,135,2],[135,3,135,5],[135,6,135,7],[153,0,153,2],[153,3,153,11],[140,0,140,19],[141,0,141,2],[141,3,141,11],[141,12,141,13],[137,3,137,11],[135,8,135,11],[135,12,135,13],[135,14,135,19],[136,0,136,19],[138,0,138,19],[153,14,153,17],[151,0,151,19],[150,10,150,11],[150,12,150,13],[137,12,137,13],[161,6,161,7],[161,8,161,11],[161,12,161,13],[161,14,161,19],[162,0,162,19],[163,0,163,2],[163,3,163,11],[163,12,163,13],[163,14,163,19],[164,0,164,19],[165,0,165,2],[165,3,165,11],[165,12,165,13],[165,14,165,19],[178,0,178,19],[179,0,179,2],[179,3,179,11],[179,12,179,13],[179,14,179,17],[175,0,175,19],[177,0,177,19],[176,0,176,3],[176,4,176,8],[176,10,176,11],[176,12,176,13],[180,0,180,19],[166,0,166,19],[167,0,167,2],[167,3,167,11],[167,12,167,13],[167,14,167,19],[168,0,168,19],[169,0,169,2],[169,3,169,11],[169,12,169,13],[169,14,169,19],[181,0,181,2],[181,6,181,7],[181,8,181,11],[181,12,181,13],[181,14,181,19],[182,0,182,19],[183,0,183,2],[183,3,183,5],[183,6,183,7],[183,8,183,11],[183,12,183,13],[183,14,183,19],[184,0,184,19],[185,0,185,2],[185,3,185,5],[185,6,185,7],[185,8,185,11],[185,12,185,16],[186,0,186,19],[187,0,187,2],[187,3,187,5],[187,6,187,7],[187,8,187,11],[187,12,187,13],[187,14,187,19],[195,0,195,2],[195,3,195,11],[195,12,195,13],[195,14,195,19],[188,0,188,19],[189,0,189,2],[189,3,189,11],[189,12,189,13],[189,14,189,19],[190,0,190,19],[191,0,191,2],[191,3,191,11],[191,12,191,13],[191,14,191,19],[209,12,209,13],[209,14,209,19],[210,0,210,19],[211,0,211,2],[211,3,211,5],[211,6,211,7],[211,8,211,11],[211,12,211,16],[204,0,204,19],[205,0,205,2],[205,3,205,11],[205,12,205,13],[205,14,205,17],[206,0,206,19],[207,0,207,2],[207,6,207,7],[207,8,207,11],[207,12,207,13],[207,14,207,19],[93,18,93,19],[95,3,95,8],[93,0,95,2],[93,10,95,11],[93,12,93,17],[216,0,216,19],[217,0,217,2],[217,3,217,11],[217,12,217,13],[217,14,217,19],[212,0,212,19],[213,0,213,2],[213,3,213,5],[213,6,213,7],[213,8,213,11],[213,12,213,13],[213,14,213,19],[214,0,214,19],[215,0,215,2],[215,3,215,11],[215,12,215,13],[215,14,215,19],[208,0,208,19],[209,8,209,11],[121,37,121,38],[122,0,122,19],[144,0,144,19],[145,0,147,2],[145,3,145,8],[145,10,147,11],[145,12,145,17],[145,18,145,19],[147,3,147,8],[147,12,147,19],[147,37,147,38],[119,0,121,2],[119,3,119,8],[119,10,121,11],[119,12,119,17],[119,18,119,19],[121,3,121,8],[121,12,121,19],[131,12,131,13],[131,14,131,19],[131,0,131,2],[131,3,131,5],[131,6,131,7],[131,8,131,11],[173,37,173,38],[174,0,174,19],[196,0,196,19],[197,0,199,2],[197,3,197,8],[197,10,199,11],[197,12,197,17],[197,18,197,19],[199,3,199,8],[199,12,199,19],[199,37,199,38],[171,0,173,2],[171,3,171,8],[171,10,173,11],[171,12,171,17],[171,18,171,19],[173,3,173,8],[173,12,173,19],[192,0,192,19],[193,0,193,2],[193,3,193,11],[193,12,193,13],[193,14,193,19],[194,0,194,19],[225,37,225,38],[226,0,226,19],[259,0,259,19],[237,0,237,19],[240,0,240,19],[238,3,238,4],[238,6,238,7],[238,9,238,10],[238,0,238,2],[223,0,225,2],[223,3,223,8],[223,10,225,11],[223,12,223,17],[223,18,223,19],[225,3,225,8],[225,12,225,19],[246,11,246,19],[247,11,247,19],[248,11,248,19],[254,3,254,10],[246,3,246,10],[246,0,246,2],[247,0,247,2],[257,0,257,19],[287,7,302,11],[287,13,302,18],[305,2,305,5],[305,8,305,11],[305,14,305,18],[325,2,325,5],[325,8,325,11],[325,14,325,18],[308,1,322,5],[308,7,322,11],[308,13,322,18],[304,1,304,5],[303,13,303,18],[323,1,323,5],[323,7,323,11],[200,0,200,19],[222,0,222,19],[148,0,148,19],[170,0,170,19],[93,3,93,8],[95,12,95,19],[218,0,218,19],[219,0,219,2],[275,1,275,19],[219,3,219,11],[219,12,219,13],[219,14,219,19],[220,0,220,19],[221,0,221,2],[221,3,221,11],[221,12,221,13],[221,14,221,19],[245,1,245,2],[245,11,245,19],[244,0,244,19],[227,0,227,19],[209,0,209,2],[209,3,209,5],[209,6,209,7]]}
[null,null,null,null,null,null,null,null,null,null,null,null,null,null,null,null,null,null,null,null,null,null,null,null,null,null,null,null,null,null,null,null,null,null,null,null,null,null,null,null,null,null,null,null,null,null,null,null,null,null,null,null,null,null,null,null,null,null,null,null,null,null,null,null,null,null,null,null,null,1,null,1]
["DATOS DEL CLIENTE"]
[null,null,null,null,null,null,null,null,null,null,null,null,null,null,null,null,null,null,null,null,null,null,"b"]
["Razón Social de la Persona Jurídica:",null,null,null,null,null,null,null,null,null,null,null,"Número de Identificación Tributaria (NIT):"]
[null,null,null,null,null,null,null,null,null,null,null,null,null,null,null,null,null,null,null,null,null,null,"b"]
["Domicilio legal:",null,null,null,null,null,null,null,null,null,null,null,"Tipo de Sociedad:"]
[null,null,null,null,null,null,null,null,null,null,null,null,null,null,null,null,null,null,null,null,null,null,"b"]
["Teléfono fijo:",null,null,null,null,null,null,"Teléfono celular:",null,null,null,null,"Correo electrónico:"]
[null,null,null,null,null,null,null,null,null,null,null,null,null,null,null,null,null,null,null,null,null,null,"b"]
[]
["NÓMINA DE MIEMBROS DEL DIRECTORIO / PERSONAL EJECUTIVO: (*)",null,null,null,null,null,null,null,null,null,null,"Seleccione el número de personas que desea registrar: "]
[]
[null,null,null,null,null,null,null,null,null,null,null,null,null,null,null,null,null,null,null,null,null,null,"b"]
["Nombre y Apellido:",null,null,null,null,null,"Número de Documento de Identidad",null,"Ext.","Nacionalidad","Actividad \nEconómica","Dirección del Domicilio particular",null,null,null,"Cargo",null,"Fecha de Nacimiento"]
[null,null,null,null,null,null,null,null,null,null,null,null,null,null,null,null,null,"DD","MM","AA"]
[]
[]
[]
[]
[]
[]
[]
[]
[]
[]
[]
[]
[]
[]
[]
[]
[]
[]
[]
[]
["rgr",null,null,null,null,null,null,null,null,null,null,null,null,null,null,null,null,null,null,null,null,null,"b"]
["(*) En caso de requerirse filas adicionales a las desplegadas, para el registro de Miembros del Directorio o Personal Ejecutivo, se debe completar el anexo \"Nóminas\" adjunto al presente formulario."]
[null,null,null,null,null,null,null,null,null,null,null,null,null,null,null,null,null,null,null,null,null,null,"B"]
[]
["NÓMINA DE SOCIOS, ACCIONISTAS, ASOCIADOS O MIEMBROS QUE TENGAN UNA PARTICIPACIÓN IGUAL O MAYOR A 10%: (*) (**)",null,null,null,null,null,null,null,null,null,null,"Seleccione el número de personas que desea registrar: "]
[]
[null,null,null,null,null,null,null,null,null,null,null,null,null,null,null,null,null,null,null,null,null,null,"b"]
["Nombre y Apellido:",null,null,null,null,null,"Número de Documento de Identidad",null,"Ext.","Nacionalidad","Actividad \nEconómica","Dirección del Domicilio particular",null,null,null,"Porcentaje de Participación",null,"Fecha de Nacimiento"]
[null,null,null,null,null,null,null,null,null,null,null,null,null,null,null,null,null,"DD","MM","AA"]
[]
[]
[]
[]
[]
[]
[]
[]
[]
[]
[]
[]
[]
[]
[]
[]
[]
[]
[]
[]
["(*) En caso que el socio o accionista de la persona jurídica sea otra persona jurídica se debe adjuntar la nómina de socios, accionistas o miembros que en última instancia (persona natural) llegan a tener participación accionaria o societaria igual o mayor al 10% del capital social de esta empresa, o miembros que ostentan el control de la persona jurídica, indicando el nombre completo, número de documento de identidad y porcentaje de participación.",null,null,null,null,null,null,null,null,null,null,null,null,null,null,null,null,null,null,null,null,null,"b"]
["(**) En caso de requerirse filas adicionales a las desplegadas, para el registro de Socios, Accionistas, Asociados o Miembros, se debe completar el anexo \"Nóminas\" adjunto al presente formulario."]
[null,null,null,null,null,null,null,null,null,null,null,null,null,null,null,null,null,null,null,null,null,null,"b"]
[]
["DATOS DEL(OS) REPRESENTANTE(S) LEGAL(ES) (*):",null,null,null,null,null,null,null,null,null,null,"Seleccione el número de rep. legales que desea registrar: "]
[]
[null,null,null,null,null,null,null,null,null,null,null,null,null,null,null,null,null,null,null,null,null,null,"b"]
[]
["REPRESENTANTE LEGAL 1",null,null,null,"¿El Representante Legal ya es cliente del Banco?  ",null,null,null,null,null,"Número de Cliente "]
[]
[null,null,null,null,null,null,null,null,null,null,null,null,null,null,null,null,null,null,null,null,null,null,"b"]
["Nombres  y Apellidos:",null,null,null,null,null,null,null,null,null,null,null,"N° documento de Identidad:",null,null,null,null,null,"Ext.:"]
[null,null,null,null,null,null,null,null,null,null,null,null,null,null,null,null,null,null,null,null,null,null,"b"]
["Fecha de Nacimiento:",null,null,null,null,null,"Nacionalidad:",null,null,null,null,null,"País de Residencia:"]
[null,null,null,null,null,null,null,null,null,null,null,null,null,null,null,null,null,null,null,null,null,null,"b"]
["Profesión / ocupación:",null,null,null,null,null,"Situación laboral:",null,null,null,null,null,"Ingreso Mensual:"]
[null,null,null,null,null,null,null,null,null,null,null,null,null,null,null,null,null,null,null,null,null,null,"b"]
["Lugar de trabajo:",null,null,null,null,null,"Cargo:",null,null,null,null,null,"Fecha de ingreso al lugar de trabajo / inicio de actividad económica:"]
[null,null,null,null,null,null,null,null,null,null,null,null,null,null,null,null,null,null,null,null,null,null,"b"]
["Correo electrónico",null,null,null,null,null,"Estado Civil:",null,null,null,null,null,"Nombre Cónyuge:"]
[null,null,null,null,null,null,null,null,null,null,null,null,null,null,null,null,null,null,null,null,null,null,"b"]
["Dirección domicilio:",null,null,null,null,null,null,null,null,null,null,null,"Teléfono Fijo / Celular:"]
[null,null,null,null,null,null,null,null,null,null,null,null,null,null,null,null,null,null,null,null,null,null,"b"]
["Dirección Laboral:",null,null,null,null,null,null,null,null,null,null,null,"Teléfono laboral:"]
[null,null,null,null,null,null,null,null,null,null,null,null,null,null,null,null,null,null,null,null,null,null,"b"]
["Referencia Personal 1:",null,null,null,null,null,null,null,null,null,null,null,"Teléfono Fijo / Celular:\n(Referencia personal 1)"]
[null,null,null,null,null,null,null,null,null,null,null,null,null,null,null,null,null,null,null,null,null,null,"b"]
["Referencia Personal 2: (**)",null,null,null,null,null,null,null,null,null,null,null,"Teléfono Fijo / Celular:\n(Referencia personal 2)"]
[null,null,null,null,null,null,null,null,null,null,null,null,null,null,null,null,null,null,null,null,null,null,"b"]
["DILIGENCIA ADICIONAL:",null,null,"¿Es portador de tarjeta verde, pasaporte norteamericano, nacido o hijo de ciudadano de los Estados Unidos de Norteamérica?",null,null,null,null,null,null,"INFORMACIÓN ADICIONAL DE CLIENTE PEP:",null,"¿El representante legal es Persona Expuesta Políticamente (PEP)?"]
[null,null,null,null,null,null,null,null,null,null,null,null,null,null,null,null,null,null,null,null,null,null,"b"]
[null,null,null,"¿Ha permanecido más de 180 días en un año o promedio de 120 días al año durante los últimos 3 años en los Estados Unidos de Norteamérica?"]
[null,null,null,null,null,null,null,null,null,null,null,null,null,null,null,null,null,null,null,null,null,null,"b"]
[]
["REPRESENTANTE LEGAL 2",null,null,null,"¿El Representante Legal ya es cliente del Banco?  ",null,null,null,null,null,"Número de Cliente "]
[]
[null,null,null,null,null,null,null,null,null,null,null,null,null,null,null,null,null,null,null,null,null,null,"b"]
["Nombres  y Apellidos:",null,null,null,null,null,null,null,null,null,null,null,"N° documento de Identidad:",null,null,null,null,null,"Ext.:"]
[null,null,null,null,null,null,null,null,null,null,null,null,null,null,null,null,null,null,null,null,null,null,"b"]
["Fecha de Nacimiento:",null,null,null,null,null,"Nacionalidad:",null,null,null,null,null,"País de Residencia:"]
[null,null,null,null,null,null,null,null,null,null,null,null,null,null,null,null,null,null,null,null,null,null,"b"]
["Profesión / ocupación:",null,null,null,null,null,"Situación laboral:",null,null,null,null,null,"Ingreso Mensual:"]
[null,null,null,null,null,null,null,null,null,null,null,null,null,null,null,null,null,null,null,null,null,null,"b"]
["Lugar de trabajo:",null,null,null,null,null,"Cargo:",null,null,null,null,null,"Fecha de ingreso al lugar de trabajo / inicio de actividad económica:"]
[null,null,null,null,null,null,null,null,null,null,null,null,null,null,null,null,null,null,null,null,null,null,"b"]
["Correo electrónico",null,null,null,null,null,"Estado Civil:",null,null,null,null,null,"Nombre Cónyuge:"]
[null,null,null,null,null,null,null,null,null,null,null,null,null,null,null,null,null,null,null,null,null,null,"b"]
["Dirección domicilio:",null,null,null,null,null,null,null,null,null,null,null,"Teléfono Fijo / Celular:"]
[null,null,null,null,null,null,null,null,null,null,null,null,null,null,null,null,null,null,null,null,null,null,"b"]
["Dirección Laboral:",null,null,null,null,null,null,null,null,null,null,null,"Teléfono laboral:"]
[null,null,null,null,null,null,null,null,null,null,null,null,null,null,null,null,null,null,null,null,null,null,"b"]
["Referencia Personal 1:",null,null,null,null,null,null,null,null,null,null,null,"Teléfono Fijo / Celular:\n(Referencia personal 1)"]
[null,null,null,null,null,null,null,null,null,null,null,null,null,null,null,null,null,null,null,null,null,null,"b"]
["Referencia Personal 2: (**)",null,null,null,null,null,null,null,null,null,null,null,"Teléfono Fijo / Celular:\n(Referencia personal 2)"]
[null,null,null,null,null,null,null,null,null,null,null,null,null,null,null,null,null,null,null,null,null,null,"b"]
["DILIGENCIA ADICIONAL:",null,null,"¿Es portador de tarjeta verde, pasaporte norteamericano, nacido o hijo de ciudadano de los Estados Unidos de Norteamérica?",null,null,null,null,null,null,"INFORMACIÓN ADICIONAL DE CLIENTE PEP:",null,"¿El representante legal es Persona Expuesta Políticamente (PEP)?"]
[null,null,null,null,null,null,null,null,null,null,null,null,null,null,null,null,null,null,null,null,null,null,"b"]
[null,null,null,"¿Ha permanecido más de 180 días en un año o promedio de 120 días al año durante los últimos 3 años en los Estados Unidos de Norteamérica?"]
[null,null,null,null,null,null,null,null,null,null,null,null,null,null,null,null,null,null,null,null,null,null,"b"]
[]
["REPRESENTANTE LEGAL 3",null,null,null,"¿El Representante Legal ya es cliente del Banco?  ",null,null,null,null,null,"Número de Cliente "]
[]
[null,null,null,null,null,null,null,null,null,null,null,null,null,null,null,null,null,null,null,null,null,null,"b"]
["Nombres  y Apellidos:",null,null,null,null,null,null,null,null,null,null,null,"N° documento de Identidad:",null,null,null,null,null,"Ext.:"]
[null,null,null,null,null,null,null,null,null,null,null,null,null,null,null,null,null,null,null,null,null,null,"b"]
["Fecha de Nacimiento:",null,null,null,null,null,"Nacionalidad:",null,null,null,null,null,"País de Residencia:"]
[null,null,null,null,null,null,null,null,null,null,null,null,null,null,null,null,null,null,null,null,null,null,"b"]
["Profesión / ocupación:",null,null,null,null,null,"Situación laboral:",null,null,null,null,null,"Ingreso Mensual:"]
[null,null,null,null,null,null,null,null,null,null,null,null,null,null,null,null,null,null,null,null,null,null,"b"]
["Lugar de trabajo:",null,null,null,null,null,"Cargo:",null,null,null,null,null,"Fecha de ingreso al lugar de trabajo / inicio de actividad económica:"]
[null,null,null,null,null,null,null,null,null,null,null,null,null,null,null,null,null,null,null,null,null,null,"b"]
["Correo electrónico",null,null,null,null,null,"Estado Civil:",null,null,null,null,null,"Nombre Cónyuge:"]
[null,null,null,null,null,null,null,null,null,null,null,null,null,null,null,null,null,null,null,null,null,null,"b"]
["Dirección domicilio:",null,null,null,null,null,null,null,null,null,null,null,"Teléfono Fijo / Celular:"]
[null,null,null,null,null,null,null,null,null,null,null,null,null,null,null,null,null,null,null,null,null,null,"b"]
["Dirección Laboral:",null,null,null,null,null,null,null,null,null,null,null,"Teléfono laboral:"]
[null,null,null,null,null,null,null,null,null,null,null,null,null,null,null,null,null,null,null,null,null,null,"b"]
["Referencia Personal 1:",null,null,null,null,null,null,null,null,null,null,null,"Teléfono Fijo / Celular:\n(Referencia personal 1)"]
[null,null,null,null,null,null,null,null,null,null,null,null,null,null,null,null,null,null,null,null,null,null,"b"]
["Referencia Personal 2: (**)",null,null,null,null,null,null,null,null,null,null,null,"Teléfono Fijo / Celular:\n(Referencia personal 2)"]
[null,null,null,null,null,null,null,null,null,null,null,null,null,null,null,null,null,null,null,null,null,null,"b"]
["DILIGENCIA ADICIONAL:",null,null,"¿Es portador de tarjeta verde, pasaporte norteamericano, nacido o hijo de ciudadano de los Estados Unidos de Norteamérica?",null,null,null,null,null,null,"INFORMACIÓN ADICIONAL DE CLIENTE PEP:",null,"¿El representante legal es Persona Expuesta Políticamente (PEP)?"]
[null,null,null,null,null,null,null,null,null,null,null,null,null,null,null,null,null,null,null,null,null,null,"b"]
[null,null,null,"¿Ha permanecido más de 180 días en un año o promedio de 120 días al año durante los últimos 3 años en los Estados Unidos de Norteamérica?"]
[null,null,null,null,null,null,null,null,null,null,null,null,null,null,null,null,null,null,null,null,null,null,"b"]
[]
["REPRESENTANTE LEGAL 4",null,null,null,"¿El Representante Legal ya es cliente del Banco?  ",null,null,null,null,null,"Número de Cliente "]
[]
[null,null,null,null,null,null,null,null,null,null,null,null,null,null,null,null,null,null,null,null,null,null,"b"]
["Nombres  y Apellidos:",null,null,null,null,null,null,null,null,null,null,null,"N° documento de Identidad:",null,null,null,null,null,"Ext.:"]
[null,null,null,null,null,null,null,null,null,null,null,null,null,null,null,null,null,null,null,null,null,null,"b"]
["Fecha de Nacimiento:",null,null,null,null,null,"Nacionalidad:",null,null,null,null,null,"País de Residencia:"]
[null,null,null,null,null,null,null,null,null,null,null,null,null,null,null,null,null,null,null,null,null,null,"b"]
["Profesión / ocupación:",null,null,null,null,null,"Situación laboral:",null,null,null,null,null,"Ingreso Mensual:"]
[null,null,null,null,null,null,null,null,null,null,null,null,null,null,null,null,null,null,null,null,null,null,"b"]
["Lugar de trabajo:",null,null,null,null,null,"Cargo:",null,null,null,null,null,"Fecha de ingreso al lugar de trabajo / inicio de actividad económica:"]
[null,null,null,null,null,null,null,null,null,null,null,null,null,null,null,null,null,null,null,null,null,null,"b"]
["Correo electrónico",null,null,null,null,null,"Estado Civil:",null,null,null,null,null,"Nombre Cónyuge:"]
[null,null,null,null,null,null,null,null,null,null,null,null,null,null,null,null,null,null,null,null,null,null,"b"]
["Dirección domicilio:",null,null,null,null,null,null,null,null,null,null,null,"Teléfono Fijo / Celular:"]
[null,null,null,null,null,null,null,null,null,null,null,null,null,null,null,null,null,null,null,null,null,null,"b"]
["Dirección Laboral:",null,null,null,null,null,null,null,null,null,null,null,"Teléfono laboral:"]
[null,null,null,null,null,null,null,null,null,null,null,null,null,null,null,null,null,null,null,null,null,null,"b"]
["Referencia Personal 1:",null,null,null,null,null,null,null,null,null,null,null,"Teléfono Fijo / Celular:\n(Referencia personal 1)"]
[null,null,null,null,null,null,null,null,null,null,null,null,null,null,null,null,null,null,null,null,null,null,"b"]
["Referencia Personal 2: (**)",null,null,null,null,null,null,null,null,null,null,null,"Teléfono Fijo / Celular:\n(Referencia personal 2)"]
[null,null,null,null,null,null,null,null,null,null,null,null,null,null,null,null,null,null,null,null,null,null,"b"]
["DILIGENCIA ADICIONAL:",null,null,"¿Es portador de tarjeta verde, pasaporte norteamericano, nacido o hijo de ciudadano de los Estados Unidos de Norteamérica?",null,null,null,null,null,null,"INFORMACIÓN ADICIONAL DE CLIENTE PEP:",null,"¿El representante legal es Persona Expuesta Políticamente (PEP)?"]
[null,null,null,null,null,null,null,null,null,null,null,null,null,null,null,null,null,null,null,null,null,null,"b"]
[null,null,null,"¿Ha permanecido más de 180 días en un año o promedio de 120 días al año durante los últimos 3 años en los Estados Unidos de Norteamérica?"]
[null,null,null,null,null,null,null,null,null,null,null,null,null,null,null,null,null,null,null,null,null,null,"b"]
[]
["REPRESENTANTE LEGAL 5",null,null,null,"¿El Representante Legal ya es cliente del Banco?  ",null,null,null,null,null,"Número de Cliente "]
[]
[null,null,null,null,null,null,null,null,null,null,null,null,null,null,null,null,null,null,null,null,null,null,"b"]
["Nombres  y Apellidos:",null,null,null,null,null,null,null,null,null,null,null,"N° documento de Identidad:",null,null,null,null,null,"Ext.:"]
[null,null,null,null,null,null,null,null,null,null,null,null,null,null,null,null,null,null,null,null,null,null,"b"]
["Fecha de Nacimiento:",null,null,null,null,null,"Nacionalidad:",null,null,null,null,null,"País de Residencia:"]
[null,null,null,null,null,null,null,null,null,null,null,null,null,null,null,null,null,null,null,null,null,null,"b"]
["Profesión / ocupación:",null,null,null,null,null,"Situación laboral:",null,null,null,null,null,"Ingreso Mensual:"]
[null,null,null,null,null,null,null,null,null,null,null,null,null,null,null,null,null,null,null,null,null,null,"b"]
["Lugar de trabajo:",null,null,null,null,null,"Cargo:",null,null,null,null,null,"Fecha de ingreso al lugar de trabajo / inicio de actividad económica:"]
[null,null,null,null,null,null,null,null,null,null,null,null,null,null,null,null,null,null,null,null,null,null,"b"]
["Correo electrónico",null,null,null,null,null,"Estado Civil:",null,null,null,null,null,"Nombre Cónyuge:"]
[null,null,null,null,null,null,null,null,null,null,null,null,null,null,null,null,null,null,null,null,null,null,"b"]
["Dirección domicilio:",null,null,null,null,null,null,null,null,null,null,null,"Teléfono Fijo / Celular:"]
[null,null,null,null,null,null,null,null,null,null,null,null,null,null,null,null,null,null,null,null,null,null,"b"]
["Dirección Laboral:",null,null,null,null,null,null,null,null,null,null,null,"Teléfono laboral:"]
[null,null,null,null,null,null,null,null,null,null,null,null,null,null,null,null,null,null,null,null,null,null,"b"]
["Referencia Personal 1:",null,null,null,null,null,null,null,null,null,null,null,"Teléfono Fijo / Celular:\n(Referencia personal 1)"]
[null,null,null,null,null,null,null,null,null,null,null,null,null,null,null,null,null,null,null,null,null,null,"b"]
["Referencia Personal 2: (**)",null,null,null,null,null,null,null,null,null,null,null,"Teléfono Fijo / Celular:\n(Referencia personal 2)"]
[null,null,null,null,null,null,null,null,null,null,null,null,null,null,null,null,null,null,null,null,null,null,"b"]
["DILIGENCIA ADICIONAL:",null,null,"¿Es portador de tarjeta verde, pasaporte norteamericano, nacido o hijo de ciudadano de los Estados Unidos de Norteamérica?",null,null,null,null,null,null,"INFORMACIÓN ADICIONAL DE CLIENTE PEP:",null,"¿El representante legal es Persona Expuesta Políticamente (PEP)?"]
[null,null,null,null,null,null,null,null,null,null,null,null,null,null,null,null,null,null,null,null,null,null,"b"]
[null,null,null,"¿Ha permanecido más de 180 días en un año o promedio de 120 días al año durante los últimos 3 años en los Estados Unidos de Norteamérica?"]
[null,null,null,null,null,null,null,null,null,null,null,null,null,null,null,null,null,null,null,null,null,null,"b"]
[]
["REPRESENTANTE LEGAL 6",null,null,null,"¿El Representante Legal ya es cliente del Banco?  ",null,null,null,null,null,"Número de Cliente "]
[]
[null,null,null,null,null,null,null,null,null,null,null,null,null,null,null,null,null,null,null,null,null,null,"b"]
["Nombres  y Apellidos:",null,null,null,null,null,null,null,null,null,null,null,"N° documento de Identidad:",null,null,null,null,null,"Ext.:"]
[null,null,null,null,null,null,null,null,null,null,null,null,null,null,null,null,null,null,null,null,null,null,"b"]
["Fecha de Nacimiento:",null,null,null,null,null,"Nacionalidad:",null,null,null,null,null,"País de Residencia:"]
[null,null,null,null,null,null,null,null,null,null,null,null,null,null,null,null,null,null,null,null,null,null,"b"]
["Profesión / ocupación:",null,null,null,null,null,"Situación laboral:",null,null,null,null,null,"Ingreso Mensual:"]
[null,null,null,null,null,null,null,null,null,null,null,null,null,null,null,null,null,null,null,null,null,null,"b"]
["Lugar de trabajo:",null,null,null,null,null,"Cargo:",null,null,null,null,null,"Fecha de ingreso al lugar de trabajo / inicio de actividad económica:"]
[null,null,null,null,null,null,null,null,null,null,null,null,null,null,null,null,null,null,null,null,null,null,"b"]
["Correo electrónico",null,null,null,null,null,"Estado Civil:",null,null,null,null,null,"Nombre Cónyuge:"]
[null,null,null,null,null,null,null,null,null,null,null,null,null,null,null,null,null,null,null,null,null,null,"b"]
["Dirección domicilio:",null,null,null,null,null,null,null,null,null,null,null,"Teléfono Fijo / Celular:"]
[null,null,null,null,null,null,null,null,null,null,null,null,null,null,null,null,null,null,null,null,null,null,"b"]
["Dirección Laboral:",null,null,null,null,null,null,null,null,null,null,null,"Teléfono laboral:"]
[null,null,null,null,null,null,null,null,null,null,null,null,null,null,null,null,null,null,null,null,null,null,"b"]
["Referencia Personal 1:",null,null,null,null,null,null,null,null,null,null,null,"Teléfono Fijo / Celular:\n(Referencia personal 1)"]
[null,null,null,null,null,null,null,null,null,null,null,null,null,null,null,null,null,null,null,null,null,null,"b"]
["Referencia Personal 2: (**)",null,null,null,null,null,null,null,null,null,null,null,"Teléfono Fijo / Celular:\n(Referencia personal 2)"]
[null,null,null,null,null,null,null,null,null,null,null,null,null,null,null,null,null,null,null,null,null,null,"b"]
["DILIGENCIA ADICIONAL:",null,null,"¿Es portador de tarjeta verde, pasaporte norteamericano, nacido o hijo de ciudadano de los Estados Unidos de Norteamérica?",null,null,null,null,null,null,"INFORMACIÓN ADICIONAL DE CLIENTE PEP:",null,"¿El representante legal es Persona Expuesta Políticamente (PEP)?"]
[null,null,null,null,null,null,null,null,null,null,null,null,null,null,null,null,null,null,null,null,null,null,"b"]
[null,null,null,"¿Ha permanecido más de 180 días en un año o promedio de 120 días al año durante los últimos 3 años en los Estados Unidos de Norteamérica?"]
[null,null,null,null,null,null,null,null,null,null,null,null,null,null,null,null,null,null,null,null,null,null,"b"]
["(*) En caso de requerirse filas adicionales para el registro de más Representantes Legales, se debe completar el anexo \"Nómina Rep. Legal\" adjunto al presente formulario."]
["(**) En caso que el Representante Legal sea de nacionalidad extranjera \"con residencia\" en Bolivia registrar una segunda referencia comercial, laboral o bancaria."]
[null,null,null,null,null,null,null,null,null,null,null,null,null,null,null,null,null,null,null,null,null,null,"b"]
["INFORMACIÓN PRODUCTOS SOLICITADOS"]
[null,null,null,null,null,null,null,null,null,null,null,null,null,null,null,null,null,null,null,null,null,null,"b"]
[null,null,null,"Tipo de cuenta: ",null,null,"Moneda: ",null,null,"Administración:",null,null,"Monto mensual de la(s) cuenta(s) (en Bs):",null,null,"Motivo de la apertura de la(s) cuenta(s)"]
["Solicitud 1:"]
["Solicitud 2:"]
["Solicitud 3:"]
[null,null,null,null,null,null,null,null,null,null,null,null,null,null,null,null,null,null,null,null,null,null,"b"]
[null,null,null,null,null,null,null,null,null,null,null,null,null,null,null,null,null,null,null,null,null,null,"b"]
["SERVICIOS ADICIONALES REQUERIDOS:",null,null,"Banca electrónica (e-Bisa):",null,null,"Tarjeta de Débito:",null,null,"Chequera:",null,null,"Otro (Especificar)"]
[null,null,null," Marcar con una \"X\". En caso de seleccionar cualquier servicio adicional, se debe completar el formulario de solicitud e-Bisa, formulario de administración de tarjeta de débito y/o chequera, según corresponda."]
[null,null,null,null,null,null,null,null,null,null,null,null,null,null,null,null,null,null,null,null,null,null,"b"]
["INFORMACIÓN DE LA EMPRESA (Referencias, Contactos e Información Adicional):"]
[null,null,null,null,null,null,null,null,null,null,null,null,null,null,null,null,null,null,null,null,null,null,"b"]
["REFERENCIAS COMERCIALES/BANCARIAS DE LA EMPRESA (Registrar Obligatorimente las dos Referencias Comerciales/Bancarias de la Empresa)"]
[null,null,null,null,null,null,null,null,null,null,null,null,null,null,null,null,null,null,null,null,null,null,"b"]
[null,null,null,"Referencia 1",null,null,null,null,null,null,null,"Referencia 2"]
["Nombre persona de contacto:"]
["Institución:"]
["Teléfono fijo o móvil:"]
["Productos que la empresa mantiene con la referencia bancaria:"]
[null,null,null,null,null,null,null,null,null,null,null,null,null,null,null,null,null,null,null,null,null,null,"b"]
["PERSONAS DE CONTACTO EN LA EMPRESA"]
[null,null,null,null,null,null,null,null,null,null,null,null,null,null,null,null,null,null,null,null,null,null,"b"]
[null,null,null,"Contacto 1",null,null,null,null,null,null,null,"Contacto 2"]
["Nombre persona de contacto:"]
["Cargo:",null,null,null,null,null,"Nacionalidad:",null,null,null,null,null,null,null,"Nacionalidad:"]
["Teléfono fijo o móvil:"]
[null,null,null,null,null,null,null,null,null,null,null,null,null,null,null,null,null,null,null,null,null,null,"b"]
["INFORMACIÓN ADICIONAL DE LA EMPRESA (Marque con una \"X\" y complete la información que corresponda):"]
[null,null,null,null,null,null,null,null,null,null,null,null,null,null,null,null,null,null,null,null,null,null,"b"]
[null,null,"La empresa cotiza en bolsa o forma parte de una Corporación Internacional que cotiza en Bolsa.",null,null,null,null,null,null,"Nombre de la Bolsa:",null,null,null,null,null,"Código"]
[null,null,null,null,null,null,null,null,null,null,null,null,null,null,null,null,null,null,null,null,null,null,"b"]
[null,null,"La empresa es Estatal, ya sea del estado Boliviano o de un estado extranjero. "]
[null,null,null,null,null,null,null,null,null,null,null,null,null,null,null,null,null,null,null,null,null,null,"b"]
[null,null,"La empresa es una Entidad Financiera no Norteamericana. ",null,null,null,null,"GIIN:"]
[null,null,null,null,null,null,null,null,null,null,null,null,null,null,null,null,null,null,null,null,null,null,"b"]
[null,null,"De la información recabada en libros y registros de socios, accionistas o miembros de la persona jurídica de la cual soy representante legal; certifico, con calidad de Declaración Jurada, que ninguno de los beneficiarios finales a persona natural, que en última instancia llegan a tener participación accionaria o societaria igual o mayor al 10% del capital social de la empresa, o miembros que ostentan el control de la persona jurídica, es ciudadano, residente o portador de pasaporte norteamericano."]
[null,null,null,null,null,null,null,null,null,null,null,null,null,null,null,null,null,null,null,null,null,null,"b"]
[null,"En caso de NO seleccionar una de las cuatro opciones mencionadas, se debe adjuntar al presente, el formulario W8-BEN-E debidamente llenado y firmado por el represente legal y el formulario de Diligencia Adicional debidamente llenado por cada socio, accionista con participación accionaria o societaria igual o mayor al 10% del capital social de esta empresa o miembro y representante legal de la empresa."]
[null,null,null,null,null,null,null,null,null,null,null,null,null,null,null,null,null,null,null,null,null,null,"b"]
["AUTORIZACIONES "]
[null,null,null,null,null,null,null,null,null,null,null,null,null,null,null,null,null,null,null,null,null,null,"b"]
[null,"Autorizo (Autorizamos) al Banco Bisa S.A. en calidad de Representante Legal de la empresa a remitir toda la información que la Internal Revenue Service – IRS (Administración de Rentas Internas) de los Estados Unidos de América, requiera bajo el alcance de la Ley - FATCA - de Cumplimiento Fiscal de Cuentas en el Extranjero (Foreign Account Tax Compliance Act), con relación al movimiento y saldos de cuentas que la empresa mantiene en su institución bancaria. La presente autorización la otorgo bajo el alcance y permisión establecida en el Art. 472 de la Ley de Servicios Financieros del Estado Plurinacional de Bolivia, sobre el derecho de reserva y confidencialidad."]
[null,"Asimismo, autorizo (autorizamos) al Banco BISA S.A. a solicitar en cualquier momento, información personal y de la entidad a la que represento (representamos) de instituciones y agencias de control y/o de supervisión así como de otras fuentes que estime necesarias. Sólo en caso de requerir un sobregiro en cuenta corriente, autorizo (autorizamos) al Banco a realizar la consulta en la Central de Información Crediticia (CIC) de la Autoridad de Supervisión del Sistema Financiero (ASFI) y al informe confidencial del Buro de Información (BI) que corresponda."]
[null,"En caso de tener retenciones judiciales registradas: habiendo sido informado sobre el motivo y monto de la retención y que de continuar con la apertura de la cuenta los fondos que ingresen a la misma serán retenidos hasta cubrir el importe correspondiente a la retención, autorizo (autorizamos) continuar con el proceso para la apertura de la cuenta."]
[null,"Yo (nosotros) como titular(es) de la cuenta en Euros, en caso de que el Banco no tenga disponibilidad inmediata en Euros al momento de solicitar el retiro de fondos de la indicada cuenta, acepto(mos) recibir el importe que corresponda en bolivianos utilizando la cotización referencial del Euro en Bolivianos, según la publicación diaria del Banco Central de Bolivia (BCB) o dólares estadounidenses al tipo de cambio vigente a la fecha del retiro. "]
[null,null,null,null,null,null,null,null,null,null,null,null,null,null,null,null,null,null,null,null,null,null,"b"]
["INFORMACIÓN PARA EL CLIENTE"]
[null,null,null,null,null,null,null,null,null,null,null,null,null,null,null,null,null,null,null,null,null,null,"b"]
[null,"Le recomendamos, realizar periodicamente la revisión del extracto de su cuenta para verificar sus transacciones. Asimismo, le informamos que el plazo para solicitar la revisión de transacciones no reconocidas o no satisfactorias, realizadas con Tarjeta de Débito por internet, debe efectuarse antes de los cien (100) días de realizada la transacción; dichas solicitudes pueden ser presentadas en los canales del Banco a su disposición (Página Web, Plataforma de atención al cliente o Bisa Responde).\n- No se deberá superar las 35 transacciones por cada solicitud presentada. \n- El plazo estipulado en el presente comunicado no aplica al Seguro de Protección de Tarjeta de Débito.  "]
[null,null,null,null,null,null,null,null,null,null,null,null,null,null,null,null,null,null,null,null,null,null,"b"]
["REGISTRO DE FIRMAS"]
[null,null,null,null,null,null,null,null,null,null,null,null,null,null,null,null,null,null,null,null,null,null,"b"]
[null,"La información proporcionada tiene carácter de declaración jurada, declaro(amos) que la información proporcionada es autentica y fidedigna."]
[null,null,null,null,null,null,null,null,null,null,null,null,null,null,null,null,null,null,null,null,null,null,"b"]
[null,null,null,"Lugar:",null,null,null,null,null,null,null,"Fecha:",{"$f":"TODAY()","v":"2025-03-07"}]
[]
[]
[]
[]
[]
[]
[]
[]
[]
[]
[]
[]
[]
[]
[]
[]
[]
[null,"Firma Representante Legal  (1)",null,null,null,null,null,"Firma Representante Legal  (2)",null,null,null,null,null,"Firma Representante Legal  (3)"]
[null,{"$f":"D76","v":0},null,null,null,null,null,{"$f":"D102","v":0},null,null,null,null,null,{"$f":"D128","v":0}]
[null,"C.I.",{"$f":"O76&\" \"&T76","v":" "},null,null,null,null,"C.I.",{"$f":"O102&\" \"&T102","v":" "},null,null,null,null,"C.I.",{"$f":"O128&\" \"&T128","v":" "}]
[]
[null,"NOTA:  En caso de requerirse firmas adicionales, desplegar las filas siguientes presionando el símbolo \"+\" ubicado en la parte izquierda del formulario.  "]
[]
[]
[]
[]
[]
[]
[]
[]
[]
[]
[]
[]
[]
[]
[]
[null,"Firma Representante Legal  (4)",null,null,null,null,null,"Firma Representante Legal  (5)",null,null,null,null,null,"Firma Representante Legal  (6)"]
[null,{"$f":"D154","v":0},null,null,null,null,null,{"$f":"D180","v":0},null,null,null,null,null,{"$f":"D206","v":0}]
[null,"C.I.",{"$f":"O154&\" \"&T154","v":" "},null,null,null,null,"C.I.",{"$f":"O180&\" \"&T180","v":" "},null,null,null,null,"C.I.",{"$f":"O206&\" \"&T206","v":" "}]
[]
[null,null,null,null,null,null,null,null,null,null,null,null,null,null,null,null,null,null,null,null,null,null,"b"]
["USO INTERNO DEL BANCO (esta sección puede ser de llenado manual):"]
[null,null,null,null,null,null,null,null,null,null,null,null,null,null,null,null,null,null,null,null,null,null,"b"]
[null,"¿Cliente con registro de cuentas clausuradas? (para solicitudes de cuentas corrientes).",null,null,null,null,null,null,null,"Nombre Completo y CI Representante Legal.",null,null,null,null,"Código y nombre de Agencia origen de la apertura\n(Ej. \"210 - Ag. Mutualista\")"]
[]
[null,"Razón Social y NIT de la Persona Jurídica.",null,null,"SI",null,"NO",null,null,null,"SI",null,"NO"]
[]
["FIRMA DE VERIFICACIÓN (USO EXCLUSIVO DEL BANCO)"]
[]
[]
[]
[]
[]
[]
[]
[]
[]
[]
[]
[]
[]
[null,null,"Firma y sello del Asistente responsable de la apertura de la(s) cuenta(s). ",null,null,null,null,null,null,null,null,"Firma y sello del Responsable del Sector:"]
[null,null,null,null,null,null,null,null,null,null,null,"Confirmo haber realizado la verificación de datos de la apertura de la cuenta."]

{"sheet":"AUX","index":1,"n_rows":38,"n_cols":10,"rows_kept":38,"cut":false,"hidden":true,"merged":[[3,2,12,2]]}
["EXTENSIÓN","TIPO DE SOCIEDAD","Promedio de Movimiento","Moneda","Manejo de la cuenta","Tipo de Cuenta","Lugar","SI / NO","Ingresos (P. Nat)","PEP"]
["CBE","Sociedad Colectiva, Sociedad de Responsabilidad Limitada o Sociedad en Comandita Simple ","de USD 0 a USD 100,000.-","Bolivianos ","Indistinta ","Caja de Ahorro","La Paz","Sí","De 10 a 1000","Declaro tener o haber tenido en los últimos 10 años un cargo prominente en alguna entidad pública y/o del Estado (Ej. Ministros, Alcaldes, Senadores, Gobernadores).  "]
["CCB","Sociedad Anónima o Sociedad en Comandita por Acciones","Mayores a USD 100,000.- ","Dólares Estadounidenses","Conjunta","Cuenta Corriente","El Alto","No","De 1.001 a 3.000","Declaro ser o haber sido una figura prominente de algún partido político o ejecutivo de jerarquía de organizaciones que pertenezcan al Estado."]
["CCH","Sociedad Anónima de Economía Mixta","Temporalmente sin uso, debido a que el campo de promedio, por instrucción de la UPC, será un campo abierto.","Euros","Individual",null,"Cochabamba",null,"De 3.001 a 5.000","Declaro haber desempeñado funciones prominentes como director, subdirector, miembro de la junta o cargos similares dentro de una organización internacional."]
["CLP","Sociedad Anónima en Formación ",null,null,null,null,"Santa Cruz",null,"De 5.001 a 8.000","Declaro ser familiar de una persona PEP hasta el tercer grado de consanguinidad, segundo de afinidad o derivado de los vínculos de adopción."]
["COR","Asociación Accidental o de Cuentas en Participación ",null,null,null,null,"Tarija",null,"De 8.001 a 10.000","Declaro ser una persona cercana a una persona considerada PEP (conocida o realiza operaciones bancarias y/o comerciales por montos considerables de dinero en nombre de esta persona)."]
["CPA","Empresa constituida en el exterior con representación en Bolivia ",null,null,null,null,"Sucre",null,"De 10.001 a 15.000","Declaro ser socio comercial, socio de negocios o una Empresa (persona jurídica)  en la que una persona considerada PEP goza de una posición de control administrativo accionario o un interés económico."]
["CPO","Organización Social, Organización no Gubernamental (ONG), Fundación o Entidad Civil sin fines de lucro",null,null,null,null,"Oruro",null,"De 15.001 a 20.000"]
["CSC","Organización Religiosa y Espiritual",null,null,null,null,"Potosi",null,"De 20.001 a 50.000"]
["CTJ","Cooperativa",null,null,null,null,"Beni",null,"De 50.001 a 80.000"]
["PAS","Embajada",null,null,null,null,"Pando ",null,"De 80.001 a 100.000"]
["CEE","Banco del Exterior sin residencia en Bolivia",null,null,null,null,null,null,"De 100.000 a 300.000"]
["CEX","Organización Económica Comunitaria",null,null,null,null,null,null,"Mayor a 300.000"]
["DCR"]
["DCC"]
["DCO"]
["Nro Accionistas / Directores","ESTADO CIVIL"]
[null,"Soltero(a)"]
[1,"Casado(a)"]
[2,"Viudo(a)"]
[3,"Divorciado(a)"]
[4]
[5]
[6]
[7]
[8]
[9]
[10]
[11]
[12]
[13]
[14]
[15]
[16]
[17]
[18]
[19]
[20]

{"sheet":"Anexo Nóminas","index":2,"n_rows":35,"n_cols":18,"rows_kept":35,"cut":false,"hidden":false,"merged":[[32,17,32,19],[33,17,33,19],[34,1,34,19],[22,17,23,19],[24,17,24,19],[25,17,25,19],[26,17,26,19],[27,17,27,19],[28,17,28,19],[29,17,29,19],[30,17,30,19],[31,17,31,19],[32,1,32,4],[32,5,32,6],[32,12,32,13],[32,14,32,16],[33,1,33,4],[33,5,33,6],[33,12,33,13],[33,14,33,16],[30,1,30,4],[30,5,30,6],[30,12,30,13],[30,14,30,16],[31,1,31,4],[31,5,31,6],[31,12,31,13],[31,14,31,16],[28,1,28,4],[28,5,28,6],[28,12,28,13],[28,14,28,16],[29,1,29,4],[29,5,29,6],[29,12,29,13],[29,14,29,16],[26,1,26,4],[26,5,26,6],[26,12,26,13],[26,14,26,16],[27,1,27,4],[27,5,27,6],[27,12,27,13],[27,14,27,16],[24,1,24,4],[24,5,24,6],[24,12,24,13],[24,14,24,16],[25,1,25,4],[25,5,25,6],[25,12,25,13],[25,14,25,16],[18,17,18,19],[22,1,23,4],[22,5,23,6],[22,7,23,7],[22,8,22,10],[22,11,23,11],[22,12,23,13],[22,14,23,16],[18,1,18,4],[18,5,18,6],[18,12,18,13],[18,14,18,16],[15,17,15,19],[16,17,16,19],[17,1,17,4],[17,5,17,6],[17,12,17,13],[17,14,17,16],[15,1,15,4],[15,5,15,6],[15,12,15,13],[15,14,15,16],[16,1,16,4],[16,5,16,6],[16,12,16,13],[16,14,16,16],[17,17,17,19],[7,11,8,11],[7,8,7,10],[2,1,2,19],[4,1,4,19],[14,12,14,13],[14,14,14,16],[11,1,11,4],[11,5,11,6],[11,12,11,13],[11,14,11,16],[12,1,12,4],[12,5,12,6],[12,12,12,13],[12,14,12,16],[11,17,11,19],[12,17,12,19],[13,17,13,19],[14,17,14,19],[13,1,13,4],[13,5,13,6],[13,12,13,13],[13,14,13,16],[14,1,14,4],[14,5,14,6],[6,1,6,19],[19,1,19,19],[21,1,21,19],[1,0,1,20],[5,0,5,20],[20,0,20,20],[3,1,3,4],[3,5,3,19],[9,14,9,16],[9,17,9,19],[10,1,10,4],[10,5,10,6],[10,12,10,13],[10,14,10,16],[10,17,10,19],[7,7,8,7],[7,5,8,6],[7,1,8,4],[9,1,9,4],[9,5,9,6],[9,12,9,13],[7,17,8,19],[7,14,8,16],[7,12,8,13]]}
[]
["DATOS DEL CLIENTE:"]
[]
[null,"Razón social de la persona jurídica solicitante:",null,null,null,{"$f":"'Formulario Apertura'!D4","v":0}]
[]
["NÓMINA DE MIEMBROS DEL DIRECTORIO / PERSONAL EJECUTIVO:"]
[]
[null,"Nombre y Apellido",null,null,null,"Número de Documento de Identidad",null,"Ext.","Fecha de Nacimiento",null,null,"Nacionalidad","Actividad Económica",null,"Dirección Domicilio Particular",null,null,"Cargo"]
[null,null,null,null,null,null,null,null,"DD","MM","AA"]
[]
[]
[]
[]
[]
[]
[]
[]
[]
[]
[]
["NÓMINA DE SOCIOS, ACCIONISTAS,ASOCIADOS O MIEMBROS (*):"]
[]
[null,"Nombre y Apellido o Razon Social",null,null,null,"Número de Documento de Identidad",null,"Ext.","Fecha de Nacimiento",null,null,"Nacionalidad","Actividad Económica",null,"Dirección Domicilio Particular",null,null,"Porcentaje de Participación"]
[null,null,null,null,null,null,null,null,"DD","MM","AA"]
[]
[]
[]
[]
[]
[]
[]
[]
[]
[]
[null,"(*) En caso que el socio o accionista de la persona jurídica sea otra persona jurídica se debe adjuntar la nómina de socios, accionistas o miembros que en última instancia (persona natural) llegan a tener participación accionaria o societaria igual o mayor al 10% del capital social de esta empresa, o miembros que ostenten el control de la persona jurídica, indicando el nombre completo, número de documento de identidad y porcentaje de participación.\n(**) Se deberá obtener el \"Número de la matrícula de inscripción en el Registro de Comercio o registro en los Gobiernos Autónomos de los Departamentos o Municipios del Estado Plurinacional de Bolivia u otra documentación emitida por autoridad competente que acredite su existencia legal."]

{"sheet":"Anexo Rep. Legal","index":3,"n_rows":129,"n_cols":19,"rows_kept":129,"cut":false,"hidden":false,"merged":[[128,1,128,4],[127,6,127,8],[128,6,128,8],[127,10,127,13],[128,10,128,13],[127,15,127,18],[128,15,128,18],[116,15,125,18],[116,10,125,13],[116,6,125,8],[116,1,125,4],[126,1,126,4],[126,6,126,8],[126,10,126,13],[126,15,126,18],[4,0,4,18],[2,0,2,18],[6,0,6,3],[6,4,6,8],[6,10,6,11],[6,12,6,13],[8,0,8,19],[9,0,9,2],[127,1,127,4],[110,0,110,18],[111,1,111,18],[112,0,112,18],[113,3,113,5],[113,11,113,13],[9,3,9,11],[9,12,9,13],[9,14,9,17],[10,0,10,19],[11,0,11,2],[11,6,11,7],[11,8,11,11],[11,12,11,13],[11,14,11,19],[12,0,12,19],[13,0,13,2],[13,3,13,5],[13,6,13,7],[13,8,13,11],[13,12,13,13],[13,14,13,19],[14,0,14,19],[15,0,15,2],[15,3,15,5],[15,6,15,7],[15,8,15,11],[15,12,15,16],[20,0,20,19],[21,0,21,2],[21,3,21,11],[21,12,21,13],[21,14,21,19],[22,0,22,19],[23,0,23,2],[23,3,23,11],[23,12,23,13],[23,14,23,19],[25,3,25,11],[25,12,25,13],[25,14,25,19],[26,0,26,19],[27,0,29,2],[27,3,27,8],[27,10,29,11],[27,12,27,17],[27,18,27,19],[29,3,29,8],[29,12,29,19],[74,0,74,19],[65,14,65,19],[66,0,66,19],[67,0,67,2],[67,3,67,5],[67,6,67,7],[67,8,67,11],[67,12,67,16],[68,0,68,19],[69,0,69,2],[69,3,69,5],[69,6,69,7],[69,8,69,11],[69,12,69,13],[69,14,69,19],[72,0,72,19],[73,0,73,2],[73,3,73,11],[73,12,73,13],[73,14,73,19],[105,0,107,2],[105,3,105,8],[105,10,107,11],[105,12,105,17],[105,18,105,19],[107,3,107,8],[107,12,107,19],[108,0,108,19],[100,0,100,19],[101,0,101,2],[101,3,101,11],[101,12,101,13],[101,14,101,19],[102,0,102,19],[103,0,103,2],[103,3,103,11],[103,12,103,13],[103,14,103,19],[16,0,16,19],[17,0,17,2],[17,3,17,5],[17,6,17,7],[17,8,17,11],[17,12,17,13],[17,14,17,19],[18,0,18,19],[104,0,104,19],[97,0,97,2],[97,3,97,11],[97,12,97,13],[97,14,97,19],[98,0,98,19],[99,0,99,2],[99,3,99,11],[99,12,99,13],[99,14,99,19],[79,0,81,2],[79,3,79,8],[79,10,81,11],[79,12,79,17],[79,18,79,19],[81,3,81,8],[19,0,19,2],[19,3,19,11],[19,12,19,13],[19,14,19,19],[36,0,36,19],[37,0,37,2],[37,6,37,7],[37,8,37,11],[37,12,37,13],[37,14,37,19],[30,0,30,19],[31,0,31,19],[32,0,32,3],[32,4,32,8],[32,10,32,11],[32,12,32,13],[33,0,33,19],[34,0,34,19],[35,0,35,2],[35,3,35,11],[35,12,35,13],[35,14,35,17],[24,0,24,19],[25,0,25,2],[38,0,38,19],[39,0,39,2],[39,3,39,5],[39,6,39,7],[39,8,39,11],[39,12,39,13],[39,14,39,19],[40,0,40,19],[41,0,41,2],[41,3,41,5],[41,6,41,7],[41,8,41,11],[41,12,41,16],[42,0,42,19],[43,0,43,2],[43,3,43,5],[46,0,46,19],[47,0,47,2],[47,3,47,11],[47,12,47,13],[47,14,47,19],[48,0,48,19],[43,6,43,7],[43,8,43,11],[43,12,43,13],[43,14,43,19],[44,0,44,19],[45,0,45,2],[45,3,45,11],[45,12,45,13],[45,14,45,19],[49,0,49,2],[49,3,49,11],[49,12,49,13],[49,14,49,19],[50,0,50,19],[56,0,56,19],[57,0,57,19],[58,0,58,3],[58,4,58,8],[58,10,58,11],[58,12,58,13],[51,0,51,2],[51,3,51,11],[51,12,51,13],[51,14,51,19],[52,0,52,19],[53,0,55,2],[53,3,53,8],[53,10,55,11],[53,12,53,17],[53,18,53,19],[55,3,55,8],[55,12,55,19],[59,0,59,19],[60,0,60,19],[61,0,61,2],[61,3,61,11],[61,12,61,13],[61,14,61,17],[62,0,62,19],[63,0,63,2],[63,6,63,7],[63,8,63,11],[63,12,63,13],[63,14,63,19],[81,12,81,19],[82,0,82,19],[83,0,83,19],[64,0,64,19],[65,0,65,2],[65,3,65,5],[65,6,65,7],[65,8,65,11],[65,12,65,13],[70,0,70,19],[71,0,71,2],[78,0,78,19],[75,0,75,2],[75,3,75,11],[75,12,75,13],[75,14,75,19],[76,0,76,19],[77,0,77,2],[77,3,77,11],[77,12,77,13],[77,14,77,19],[71,3,71,11],[71,12,71,13],[71,14,71,19],[84,0,84,3],[84,4,84,8],[84,10,84,11],[84,12,84,13],[85,0,85,19],[86,0,86,19],[87,0,87,2],[87,3,87,11],[87,12,87,13],[87,14,87,17],[89,12,89,13],[89,14,89,19],[90,0,90,19],[91,0,91,2],[91,3,91,5],[91,6,91,7],[91,8,91,11],[91,12,91,13],[91,14,91,19],[96,0,96,19],[1,0,1,20],[5,0,5,20],[7,0,7,20],[109,0,109,20],[3,0,3,4],[3,5,3,19],[92,0,92,19],[93,0,93,2],[93,3,93,5],[93,6,93,7],[93,8,93,11],[93,12,93,16],[94,0,94,19],[95,0,95,2],[95,3,95,5],[95,6,95,7],[95,8,95,11],[95,12,95,13],[95,14,95,19],[88,0,88,19],[89,0,89,2],[89,6,89,7],[89,8,89,11]]}
[]
["DATOS DEL CLIENTE:"]
[]
["Razón social de la persona jurídica solicitante:",null,null,null,null,{"$f":"'Formulario Apertura'!D4","v":0}]
[]
[]
["REPRESENTANTE LEGAL 7",null,null,null,"¿El Representante Legal ya es cliente del Banco?  ",null,null,null,null,"No","Número de Cliente "]
[]
[]
["Nombres  y Apellidos:",null,null,null,null,null,null,null,null,null,null,null,"N° documento de Identidad:",null,null,null,null,null,"Ext.:"]
[]
["Fecha de Nacimiento:",null,null,null,null,null,"Nacionalidad:",null,null,null,null,null,"País de Residencia:"]
[]
["Profesión / ocupación:",null,null,null,null,null,"Situación laboral:",null,null,null,null,null,"Ingreso Mensual:"]
[]
["Lugar de trabajo:",null,null,null,null,null,"Cargo:",null,null,null,null,null,"Fecha de ingreso al lugar de trabajo / inicio de actividad económica:"]
[]
["Correo electrónico",null,null,null,null,null,"Estado Civil:",null,null,null,null,null,"Nombre Cónyuge:"]
[]
["Dirección domicilio:",null,null,null,null,null,null,null,null,null,null,null,"Teléfono Fijo / Celular:"]
[]
["Dirección Laboral:",null,null,null,null,null,null,null,null,null,null,null,"Teléfono laboral:"]
[]
["Referencia Personal 1:",null,null,null,null,null,null,null,null,null,null,null,"Teléfono Fijo / Celular:\n(Referencia personal 1)"]
[]
["Referencia Personal 2: (**)",null,null,null,null,null,null,null,null,null,null,null,"Teléfono Fijo / Celular:\n(Referencia personal 2)"]
[]
["DILIGENCIA ADICIONAL:",null,null,"¿Es portador de tarjeta verde, pasaporte norteamericano, nacido o hijo de ciudadano de los Estados Unidos de Norteamérica?",null,null,null,null,null,null,"INFORMACIÓN ADICIONAL DE CLIENTE PEP:",null,"¿El representante legal es Persona Expuesta Políticamente (PEP)?"]
[]
[null,null,null,"¿Ha permanecido más de 180 días en un año o promedio de 120 días al año durante los últimos 3 años en los Estados Unidos de Norteamérica?"]
[]
[]
["REPRESENTANTE LEGAL 8",null,null,null,"¿El Representante Legal ya es cliente del Banco?  ",null,null,null,null,null,"Número de Cliente "]
[]
[]
["Nombres  y Apellidos:",null,null,null,null,null,null,null,null,null,null,null,"N° documento de Identidad:",null,null,null,null,null,"Ext.:"]
[]
["Fecha de Nacimiento:",null,null,null,null,null,"Nacionalidad:",null,null,null,null,null,"País de Residencia:"]
[]
["Profesión / ocupación:",null,null,null,null,null,"Situación laboral:",null,null,null,null,null,"Ingreso Mensual:"]
[]
["Lugar de trabajo:",null,null,null,null,null,"Cargo:",null,null,null,null,null,"Fecha de ingreso al lugar de trabajo / inicio de actividad económica:"]
[]
["Correo electrónico",null,null,null,null,null,"Estado Civil:",null,null,null,null,null,"Nombre Cónyuge:"]
[]
["Dirección domicilio:",null,null,null,null,null,null,null,null,null,null,null,"Teléfono Fijo / Celular:"]
[]
["Dirección Laboral:",null,null,null,null,null,null,null,null,null,null,null,"Teléfono laboral:"]
[]
["Referencia Personal 1:",null,null,null,null,null,null,null,null,null,null,null,"Teléfono Fijo / Celular:\n(Referencia personal 1)"]
[]
["Referencia Personal 2: (**)",null,null,null,null,null,null,null,null,null,null,null,"Teléfono Fijo / Celular:\n(Referencia personal 2)"]
[]
["DILIGENCIA ADICIONAL:",null,null,"¿Es portador de tarjeta verde, pasaporte norteamericano, nacido o hijo de ciudadano de los Estados Unidos de Norteamérica?",null,null,null,null,null,null,"INFORMACIÓN ADICIONAL DE CLIENTE PEP:",null,"¿El representante legal es Persona Expuesta Políticamente (PEP)?"]
[]
[null,null,null,"¿Ha permanecido más de 180 días en un año o promedio de 120 días al año durante los últimos 3 años en los Estados Unidos de Norteamérica?"]
[]
[]
["REPRESENTANTE LEGAL 9",null,null,null,"¿El Representante Legal ya es cliente del Banco?  ",null,null,null,null,null,"Número de Cliente "]
[]
[]
["Nombres  y Apellidos:",null,null,null,null,null,null,null,null,null,null,null,"N° documento de Identidad:",null,null,null,null,null,"Ext.:"]
[]
["Fecha de Nacimiento:",null,null,null,null,null,"Nacionalidad:",null,null,null,null,null,"País de Residencia:"]
[]
["Profesión / ocupación:",null,null,null,null,null,"Situación laboral:",null,null,null,null,null,"Ingreso Mensual:"]
[]
["Lugar de trabajo:",null,null,null,null,null,"Cargo:",null,null,null,null,null,"Fecha de ingreso al lugar de trabajo / inicio de actividad económica:"]
[]
["Correo electrónico",null,null,null,null,null,"Estado Civil:",null,null,null,null,null,"Nombre Cónyuge:"]
[]
["Dirección domicilio:",null,null,null,null,null,null,null,null,null,null,null,"Teléfono Fijo / Celular:"]
[]
["Dirección Laboral:",null,null,null,null,null,null,null,null,null,null,null,"Teléfono laboral:"]
[]
["Referencia Personal 1:",null,null,null,null,null,null,null,null,null,null,null,"Teléfono Fijo / Celular:\n(Referencia personal 1)"]
[]
["Referencia Personal 2: (**)",null,null,null,null,null,null,null,null,null,null,null,"Teléfono Fijo / Celular:\n(Referencia personal 2)"]
[]
["DILIGENCIA ADICIONAL:",null,null,"¿Es portador de tarjeta verde, pasaporte norteamericano, nacido o hijo de ciudadano de los Estados Unidos de Norteamérica?",null,null,null,null,null,null,"INFORMACIÓN ADICIONAL DE CLIENTE PEP:",null,"¿El representante legal es Persona Expuesta Políticamente (PEP)?"]
[]
[null,null,null,"¿Ha permanecido más de 180 días en un año o promedio de 120 días al año durante los últimos 3 años en los Estados Unidos de Norteamérica?"]
[]
[]
["REPRESENTANTE LEGAL 10",null,null,null,"¿El Representante Legal ya es cliente del Banco?  ",null,null,null,null,null,"Número de Cliente "]
[]
[]
["Nombres  y Apellidos:",null,null,null,null,null,null,null,null,null,null,null,"N° documento de Identidad:",null,null,null,null,null,"Ext.:"]
[]
["Fecha de Nacimiento:",null,null,null,null,null,"Nacionalidad:",null,null,null,null,null,"País de Residencia:"]
[]
["Profesión / ocupación:",null,null,null,null,null,"Situación laboral:",null,null,null,null,null,"Ingreso Mensual:"]
[]
["Lugar de trabajo:",null,null,null,null,null,"Cargo:",null,null,null,null,null,"Fecha de ingreso al lugar de trabajo / inicio de actividad económica:"]
[]
["Correo electrónico",null,null,null,null,null,"Estado Civil:",null,null,null,null,null,"Nombre Cónyuge:"]
[]
["Dirección domicilio:",null,null,null,null,null,null,null,null,null,null,null,"Teléfono Fijo / Celular:"]
[]
["Dirección Laboral:",null,null,null,null,null,null,null,null,null,null,null,"Teléfono laboral:"]
[]
["Referencia Personal 1:",null,null,null,null,null,null,null,null,null,null,null,"Teléfono Fijo / Celular:\n(Referencia personal 1)"]
[]
["Referencia Personal 2: (**)",null,null,null,null,null,null,null,null,null,null,null,"Teléfono Fijo / Celular:\n(Referencia personal 2)"]
[]
["DILIGENCIA ADICIONAL:",null,null,"¿Es portador de tarjeta verde, pasaporte norteamericano, nacido o hijo de ciudadano de los Estados Unidos de Norteamérica?",null,null,null,null,null,null,"INFORMACIÓN ADICIONAL DE CLIENTE PEP:",null,"¿El representante legal es Persona Expuesta Políticamente (PEP)?"]
[]
[null,null,null,"¿Ha permanecido más de 180 días en un año o promedio de 120 días al año durante los últimos 3 años en los Estados Unidos de Norteamérica?"]
[]
["REGISTRO DE FIRMAS"]
[]
[null,"La información proporcionada tiene carácter de declaración jurada, declaro(amos) que la información proporcionada es autentica y fidedigna."]
[]
[null,null,"Lugar:",null,null,null,null,null,null,null,"Fecha:",{"$f":"TODAY()","v":"2025-03-07"}]
[]
[]
[]
[]
[]
[]
[]
[]
[]
[]
[]
[]
[null,"Representante Legal (7)",null,null,null,null,"Representante Legal (8)",null,null,null,"Representante Legal (9)",null,null,null,null,"Representante Legal (10)"]
[null,{"$f":"D10","v":0},null,null,null,null,{"$f":"D36","v":0},null,null,null,{"$f":"D62","v":0},null,null,null,null,{"$f":"D88","v":0}]
[null,{"$f":"O10&\" \"&T10","v":" "},null,null,null,null,{"$f":"O36&\" \"&T36","v":" "},null,null,null,{"$f":"O62&\" \"&T62","v":" "},null,null,null,null,{"$f":"O88&\" \"&T88","v":" "}]

{"sheet":"Anexo de Conformidad","index":4,"n_rows":23,"n_cols":23,"rows_kept":23,"cut":false,"hidden":true,"merged":[[22,1,22,11],[21,14,21,24],[22,14,22,24],[1,0,1,25],[2,0,2,25],[3,0,3,25],[4,0,4,25],[5,0,5,25],[7,3,7,5],[7,22,7,24],[9,1,20,11],[9,14,20,24],[21,1,21,11]]}
[]
["AUTORIZACIONES "]
[{"$f":"'Formulario Apertura'!B273","v":"Autorizo (Autorizamos) al Banco Bisa S.A. en calidad de Representante Legal de la empresa a remitir toda la información que la Internal Revenue Service – IRS (Administración de Rentas Internas) de los Estados Unidos de América, requiera bajo el alcance de la Ley - FATCA - de Cumplimiento Fiscal de Cuentas en el Extranjero (Foreign Account Tax Compliance Act), con relación al movimiento y saldos de cuentas que la empresa mantiene en su institución bancaria. La presente autorización la otorgo bajo el alcance y permisión establecida en el Art. 472 de la Ley de Servicios Financieros del Estado Plurinacional de Bolivia, sobre el derecho de reserva y confidencialidad."}]
[{"$f":"'Formulario Apertura'!B274","v":"Asimismo, autorizo (autorizamos) al Banco BISA S.A. a solicitar en cualquier momento, información personal y de la entidad a la que represento (representamos) de instituciones y agencias de control y/o de supervisión así como de otras fuentes que estime necesarias. Sólo en caso de requerir un sobregiro en cuenta corriente, autorizo (autorizamos) al Banco a realizar la consulta en la Central de Información Crediticia (CIC) de la Autoridad de Supervisión del Sistema Financiero (ASFI) y al informe confidencial del Buro de Información (BI) que corresponda."}]
[{"$f":"'Formulario Apertura'!B275","v":"En caso de tener retenciones judiciales registradas: habiendo sido informado sobre el motivo y monto de la retención y que de continuar con la apertura de la cuenta los fondos que ingresen a la misma serán retenidos hasta cubrir el importe correspondiente a la retención, autorizo (autorizamos) continuar con el proceso para la apertura de la cuenta."}]
["REGISTRO DE FIRMAS"]
[]
[null,{"$f":"'Formulario Apertura'!D286","v":"Lugar:"},null,null,null,null,null,null,null,null,null,null,null,null,null,null,null,null,null,{"$f":"'Formulario Apertura'!L286","v":"Fecha:"},null,null,{"$f":"'Formulario Apertura'!M286","v":"2025-03-07"}]
[]
[]
[]
[]
[]
[]
[]
[]
[]
[]
[]
[]
[]
[null,{"$f":"'Formulario Apertura'!B304","v":"Firma Representante Legal  (1)"},null,null,null,null,null,null,null,null,null,null,null,null,{"$f":"'Formulario Apertura'!H304","v":"Firma Representante Legal  (2)"}]
[null,{"$f":"IF('Formulario Apertura'!D76=\"\",\"\",'Formulario Apertura'!B76)","v":""}]